Cogmind - Beta 10.2 *** ADVENTURER MODE // 2021.05.18 @ 07:45:34 Player: Attayla Result: Destroyed by Y-45 Defender with Heavy Assault Rifle Performance ------------- Evolutions (2) 1000 Regions Visited (3) 600 Robots Destroyed (31) 155 Value Destroyed (896) 896 Prototype IDs (0) 0 Alien Tech Used (0) 0 Bonus (0) 0 TOTAL SCORE: 2651 Bonus ------- None Cogmind --------- Core Integrity 0/550 Matter 298/300 Energy 100/100 System Corruption 0% Temperature Cool (75) Movement Core (550) Ox10 Location -8/Materials Parts ------- > --- POWER (1) -------- (None) > --- PROPULSION (3) --- (None) > --- UTILITY (3) ------ High-capacity Storage Unit > --- WEAPON (4) ------- (None) > --- INVENTORY (12) --- Ion Engine Ion Engine Small Storage Unit Medium Battery (200) Peak State ------------ > --- POWER ------------ Deuterium Engine > --- PROPULSION ------- Light Treads Light Treads > --- UTILITY ---------- High-capacity Storage Unit Large Battery Tractor Beam > --- WEAPON ----------- Beam Cannon Beam Cannon Grenade Launcher Grenade Launcher > --- INVENTORY -------- Ion Engine Ion Engine Heat Shielding Small Storage Unit Medium Battery EM Pulse Gun Beam Cannon Light Assault Rifle Light Assault Rifle [Rating: 13] Favorites ----------- Power Ion Engine Engine Ion Engine Propulsion Light Treads Treads Light Treads Utility High-capacity Storage Unit Device Tractor Beam Storage High-capacity Storage Unit Weapon Grenade Launcher Energy Gun EM Pulse Gun Energy Cannon Beam Cannon Ballistic Gun Light Assault Rifle Launcher Grenade Launcher Build | -11 -10 -9 -8 ------- Run | Scr Mat Mat Mat Slots Evolved 4 | . . 2 2 Power . | . . . . Propulsion 1 | . . . 1 Utility 1 | . . 1 . Weapon 2 | . . 1 1 Parts Attached 23 | 6 4 5 8 Power 3 | 1 . . 2 Engine 3 | 1 . . 2 Core . | . . . . Reactor . | . . . . Propulsion 2 | 2 . . . Treads 2 | 2 . . . Leg . | . . . . Wheel . | . . . . Hover . | . . . . Flight . | . . . . Utility 6 | 1 2 2 1 Device 2 | . 1 . 1 Storage 4 | 1 1 2 . Processor . | . . . . Hackware . | . . . . Protection . | . . . . Artifact . | . . . . Weapon 12 | 2 2 3 5 Energy Gun 2 | 1 . . 1 Energy Cannon 3 | . . 2 1 Ballistic Gun 4 | 1 . 1 2 Ballistic Cannon . | . . . . Launcher 3 | . 2 . 1 Special Weapon . | . . . . Impact Weapon . | . . . . Slashing Weapon . | . . . . Piercing Weapon . | . . . . Special Melee Weapon . | . . . . Unidentified Prototypes . | . . . . Parts Lost 15 | . . . 15 Power 2 | . . . 2 Propulsion 2 | . . . 2 Utility 3 | . . . 3 Weapon 8 | . . . 8 Highest Loss Streak 15 | . . . 15 Average Slot Usage (%) 95 | . 97 99 83 Engine 12 | . 14 11 8 Treads 24 | . 28 22 16 Device 10 | . 11 11 7 Storage 16 | . 14 22 17 Energy Cannon 8 | . . 21 16 Ballistic Gun 8 | . 14 . . Launcher 12 | . 12 11 15 Naked Turns . | . . . . Heaviest Build 57 | 12 42 50 57 Greatest Support 40 | 40 40 40 40 Greatest Overweight (x) 10 | . 1 1 10 Average Overweight (x) . | . . 1 1 Largest Inventory Capacity 12 | 6 12 12 12 Average Capacity 11 | 5 10 12 12 Most Carried 10 | 4 9 9 10 Average Carried 6 | 1 5 7 8 Final Capacity 12 | 6 12 12 12 Final Carried 9 | 1 8 9 4 Class Distribution -------------------- 81% | Mutant 11% | Bomber 6% | Gunner Dominant Class ---------------- Mutant | -10/Materials Mutant | -9/Materials Mutant | -8/Materials Resources | -11 -10 -9 -8 ----------- Run | Scr Mat Mat Mat Matter Collected 606 | 176 233 120 77 Remotely 316 | . 176 120 20 Salvage Created 775 | . 164 251 360 Parts 51 | . 16 19 16 Haulers Intercepted . | . . . . Recyclers Shooed 1 | . . . 1 Parts Field Recycled . | . . . . Retrieved Matter . | . . . . Parts Self-Destructed . | . . . . Prevented . | . . . . Kills | -11 -10 -9 -8 ------- Run | Scr Mat Mat Mat Combat Hostiles Destroyed 26 | . 8 9 9 Guns 4 | . 3 . 1 Cannons 11 | . . 5 6 AOE 11 | . 5 4 2 Classes Destroyed 6 | . 3 1 2 Operator 2 | . . 1 1 Watcher 3 | . 1 2 . Swarmer 10 | . 6 4 . Grunt 12 | . 2 5 5 Duelist 1 | . . . 1 Sentry 3 | . . . 3 Best Kill Streak 7 | . 4 7 4 Combat Bots Only 6 | . 3 6 4 Max Kills in Single Turn 3 | . 3 1 1 Gunslinging . | . . . . Exploded 3 | . 3 1 1 Melee . | . . . . Uniques/NPCs Destroyed . | . . . . Combat | -11 -10 -9 -8 -------- Run | Scr Mat Mat Mat Damage Taken 1742 | . 116 26 1600 Core 563 | . 11 . 552 Absorbed by Shields . | . . . . Core Remaining (%) 98 | 100 95 100 . Volleys Fired 60 | . 23 20 17 Largest 4 | . 2 3 4 Hottest 180 | . 60 150 180 Shots Fired 111 | . 32 35 44 Gun 30 | . 22 . 8 Cannon 56 | . . 28 28 Launcher 25 | . 10 7 8 Special . | . . . . Kinetic 22 | . 16 . 6 Thermal 56 | . . 28 28 Explosive 25 | . 10 7 8 Electromagnetic 8 | . 6 . 2 Robot Hit Streak 19 | . 8 12 19 Robot Miss Streak 1 | . 1 1 1 Penetration Max . | . . . . Secondary Targets 1 | . 1 . . Max Gunslinging Chain 1 | . 1 . . Shots Hit Robots 68 | . 14 19 35 Core Hits 55 | . 15 13 27 Critical Hits . | . . . . Critical Kills . | . . . . Critical Parts Destroyed . | . . . . Melee Attacks . | . . . . Impact . | . . . . Slashing . | . . . . Piercing . | . . . . Sneak Attacks . | . . . . Combat Hostiles . | . . . . Follow-up Attacks . | . . . . Damage Inflicted 1941 | . 449 637 855 Guns 185 | . 131 . 54 Cannons 708 | . . 304 404 Explosions 1015 | . 310 333 372 Melee . | . . . . Ramming 33 | . 8 . 25 Kinetic 99 | . 66 . 33 Thermal 708 | . . 304 404 Explosive 1015 | . 310 333 372 Electromagnetic 86 | . 65 . 21 Impact . | . . . . Slashing . | . . . . Piercing . | . . . . Highest Corruption 1 | . 1 . . Average Corruption 1 | . 1 . . Corruption Purged . | . . . . Effects 1 | . 1 . . Targeting Errors 1 | . 1 . . Overload Shots . | . . . . Overflow Damage 55 | . . 43 12 Projectiles 14 | . . 14 . Explosions 41 | . . 29 12 Melee . | . . . . Knockbacks . | . . . . Impact . | . . . . Kinetic . | . . . . Secondary . | . . . . Self-Inflicted Damage 64 | . . . 64 Shots 4 | . . . 4 Rammed 7 | . 3 . 4 Targets Rammed 7 | . 3 . 4 Kicked . | . . . . Crushed . | . . . . Highest Temperature 531 | . 20 139 531 Average Temperature 125 | . 11 53 205 Received Heat Transfer 622 | . 24 . 598 Effects 5 | . . . 5 Shutdowns 2 | . . . 2 Energy Bleed 1 | . . . 1 Damage (minor) 1 | . . . 1 Damage (core) 1 | . . . 1 Siege Activations . | . . . . Robots Corrupted . | . . . . Combat Hostiles . | . . . . Parts Fried . | . . . . Impact Corruptions . | . . . . Robots Melted . | . . . . Combat Hostiles . | . . . . Parts Melted 2 | . . 2 . Heat Transferred 1480 | . . 629 851 Parts Sabotaged . | . . . . Parts Stolen . | . . . . Parts Stripped . | . . . . Power Chain Reactions . | . . . . Missiles Intercepted . | . . . . Alert | -11 -10 -9 -8 ------- Run | Scr Mat Mat Mat Peak Influence 228 | . 136 160 228 Initial 35 | . . 5 35 Average 63 | . 43 99 83 Maximum Alert Level 1 | . . . 1 Low Security (%) 99 | 100 100 100 94 Level 1 . | . . . 5 Level 2 . | . . . . Level 3 . | . . . . Level 4 . | . . . . Level 5 . | . . . . High Security . | . . . . Max Security . | . . . . Squads Dispatched 4 | . . . 4 Investigation . | . . . . Extermination . | . . . . Reinforcement 1 | . . . 1 Assault . | . . . . Garrison 3 | . . . 3 Intercept . | . . . . Construction Impeded . | . . . . Haulers Reinforced . | . . . . Stealth | -11 -10 -9 -8 --------- Run | Scr Mat Mat Mat Distress Signals 3 | . . 2 1 Communications Jammed . | . . . . Distress Signals . | . . . . Times Spotted 47 | . 17 14 16 Peak Tracking Total 7 | . 5 3 7 Tactical Retreats . | . . . . Traps | -11 -10 -9 -8 ------- Run | Scr Mat Mat Mat Traps Triggered 1 | . 1 . . Indirectly . | . . . . Trap Hack Attempts . | . . . . Triggered . | . . . . Disarmed . | . . . . Reprogrammed . | . . . . Reused . | . . . . Traps Extracted . | . . . . Installed . | . . . . Triggered . | . . . . Machines | -11 -10 -9 -8 ---------- Run | Scr Mat Mat Mat Machines Disabled 4 | . 2 2 . Max in Single Turn 1 | . 1 1 . Machines Sabotaged . | . . . . Garrisons Compromised . | . . . . Overloaded Fab Kills . | . . . . Fab Network Shutdowns . | . . . . Hacking | -11 -10 -9 -8 --------- Run | Scr Mat Mat Mat Machines Accessed 5 | . 3 1 1 Terminals 4 | . 2 1 1 Fabricators . | . . . . Repair Stations 1 | . 1 . . Recycling Units . | . . . . Scanalyzers . | . . . . Garrison Access . | . . . . Total Hacks 9 | . 5 3 1 Successful 6 | . 4 1 1 Failed 3 | . 1 2 . Catastrophic . | . . . . Database Lockouts . | . . . . Manual . | . . . . Terminals 7 | . 3 3 1 Fabricators . | . . . . Repair Stations 2 | . 2 . . Recycling Units . | . . . . Scanalyzers . | . . . . Garrison Access . | . . . . Terminal Hacks 4 | . 2 1 1 Record 1 | . 1 . . Branch Access Points 1 | . 1 . . Zone Layout 2 | . . 1 1 Fabricator Hacks . | . . . . Repair Station Hacks 2 | . 2 . . Scan Component 1 | . 1 . . Repair 1 | . 1 . . Recycling Unit Hacks . | . . . . Scanalyzer . | . . . . Garrison Access Hacks . | . . . . Unauthorized Hacks . | . . . . Terminals . | . . . . Fabricators . | . . . . Repair Stations . | . . . . Recycling Units . | . . . . Scanalyzers . | . . . . Garrison Access . | . . . . Data Cores Recovered 2 | . . 1 1 Used . | . . . . Hacking Detections 2 | . 1 1 . Full Trace Events . | . . . . Feedback Events . | . . . . Feedback Blocked . | . . . . Robot Schematics Acquired . | . . . . Robots Built . | . . . . Matter . | . . . . Time . | . . . . Total Robot Build Rating . | . . . . Part Schematics Acquired . | . . . . Parts Built . | . . . . Matter . | . . . . Time . | . . . . Total Part Build Rating . | . . . . Parts Repaired 1 | . 1 . . Time 26 | . 26 . . Parts Recycled . | . . . . Recycled Matter . | . . . . Retrieved Matter . | . . . . Retrieved Components . | . . . . Parts Scanalyzed . | . . . . Part Schematics Acquired . | . . . . Parts Damaged . | . . . . Bothacking | -11 -10 -9 -8 ------------ Run | Scr Mat Mat Mat Used RIF Installer . | . . . . Robots Hacked . | . . . . Non-combat . | . . . . Combat . | . . . . Robot Hacks Applied . | . . . . Relay Couplers Released . | . . . . Robots Rewired . | . . . . Allies Hacked . | . . . . Hacks Repelled . | . . . . Allies | -11 -10 -9 -8 -------- Run | Scr Mat Mat Mat Total Allies . | . . . . Largest Group . | . . . . Highest-Rated Group . | . . . . Highest-Rated Ally . | . . . . Total Orders . | . . . . Ally Attacks . | . . . . Total Damage . | . . . . Kills . | . . . . Allies Corrupted . | . . . . Allies Melted . | . . . . Intel | -11 -10 -9 -8 ------- Run | Scr Mat Mat Mat Robot Analysis Total . | . . . . Derelict Logs Recovered . | . . . . Drone Launches . | . . . . Drone Recoveries . | . . . . Exploration | -11 -10 -9 -8 ------------- Run | Scr Mat Mat Mat Turns Passed 2585 | 53 1463 685 384 Spaces Moved 1325 | 33 774 346 172 Core 13 | 11 . . 2 Treads 1312 | 22 774 346 170 Legs . | . . . . Wheels . | . . . . Hover . | . . . . Flight . | . . . . Fastest Speed 50 | 50 160 180 180 Average Speed 177 | 123 176 180 184 Slowest Speed 550 | 160 180 180 550 Overloaded Moves . | . . . . Propulsion Burnouts . | . . . . Robots Hopped . | . . . . Cave-ins Triggered . | . . . . Exploration Rate (%) 38 | 3 97 33 22 Regions Visited 3 Branch Regions . Pre-discovered Areas . | . . . . Known Exits Taken . | . . . . Unknown Exits Taken 3 | 1 1 1 . Scrap Searched . | . . . . Spaces Dug . | . . . . Terrain Destroyed 79 | . 59 2 18 Melee . | . . . . Projectile . | . . . . AOE 79 | . 59 2 18 Terrain Rammed . | . . . . Walls Destroyed . | . . . . Machines Disabled . | . . . . Actions | -11 -10 -9 -8 --------- Run | Scr Mat Mat Mat Total 1464 | 45 842 374 203 Wait 26 | . 26 . . Move 1322 | 32 773 345 172 Hop . | . . . . Pick Up 23 | 7 11 3 2 Fast Attach . | . . . . Attach 18 | 6 2 3 7 Detach 1 | . . 1 . Swap 5 | . 2 2 1 Drop 2 | . 2 . . Fire 60 | . 23 20 17 Melee . | . . . . Ram . | . . . . Kick . | . . . . Crush 7 | . 3 . 4 Escape Stasis . | . . . . Rewire . | . . . . Trap . | . . . . Miscellaneous . | . . . . Route ------- -11/Scrapyard -10/Materials (discovered 4 exits: *Mat x3 / *Min) -9/Materials -8/Materials History --------- Turn | Location | Event 6 | -11/Scrapyard | Discovered new exit (range 15) 54 | -11/Scrapyard | Entered Materials 300 | -10/Materials | Build established: Mutant 354 | -10/Materials | Discovered new exit (range 16) 537 | -10/Materials | Discovered new exit (range 15) 696 | -10/Materials | Identified exit to Mines 724 | -10/Materials | Discovered new exit (range 15) 1067 | -10/Materials | Discovered new exit (range 11) 1369 | -10/Materials | Repaired Grenade Launcher 1517 | -10/Materials | Entered another Materials area 1517 | -9/Materials | Evolved 2 slots: Utility x1, Weapon x1 2165 | -9/Materials | Discovered new exit (range 7) 2202 | -9/Materials | Entered another Materials area 2202 | -8/Materials | Evolved 2 slots: Propulsion x1, Weapon x1 2564 | -8/Materials | Core integrity fell below 50% 2580 | -8/Materials | Core integrity fell below 20% 2586 | -8/Materials | Destroyed by Y-45 Defender with Heavy Assault Rifle Last Messages --------------- 02562_ U-05 Engineer lays Concrete. 02564_ K-01 Serf collects debris. 02567_ Lrg. Battery destroyed. 02571_ Heat Shielding destroyed. 02571_ Y-45 Defender destroyed. 02572_ K-01 Serf collects debris. 02572_ R-06 Scavenger collects Heat Sink. 02572_ Lgt. Deuterium Engine destroyed. 02572_ EM Pulse Gun destroyed. 02573_ Y-45 Defender emerges from the garrison. 02575_ L-31 Rogue destroyed. 02575_ R-06 Scavenger collects Imp. Ion Engine. 02577_ Lgt. Assault Rifle destroyed. 02577_ Beam Cannon destroyed. 02577_ K-01 Serf collects debris. 02577_ Acquired 57 matter. 02582_ U-05 Engineer lays Concrete. 02582_ K-01 Serf collects debris. 02583_ U-05 Engineer lays Concrete. 02586_ K-01 Serf collects debris. Map ----- +----------------------------------------------------+ | ?????????????????????????????????????????????????? | | ?????????????????????????????????????????????????? | | ?????????????????????????????????????????????????? | | ?????????????????????????????????????????????????? | | ?????????????????????????????????????????????????? | | ?????????????????????????????????????????????????? | | ?????????????????????????????????????????????????? | | ?????????????????????????????????????????????????? | | ?????????????????????????????? ???????????????? | | ?????????????????????????????# # ?????????????? | | ?????????????????????????????# ##????????????? | | ????????????????????????????? #????????????? | | ???????????????????????????## ##???????????? | | ??????????????????????????? #???????????? | | ???????????????????????????? # #???????????? | | ???????????????????????????? ######????????? | | ????????????????????????????? ?? ????? | | ?????????????????????????????/ ?????? | | ?????????????????????????????# "" ???????? | | ?????????????????????????????# G" #????????? | | ???? ??????????????????????# "" #????????? | | ???# ??????????????????????# % #????????? | | ???# #?????????????????????# #????????? | | ???# #???????############### ] a #????????? | | ???# #??????? # Y Y k u #????????? | | ???# #######? """ # @ %g #????????? | | ???# ## ## """ # gY ### #????????? | | ???# ## ## """ # ########??? #????????? | | ???# ##/// ## # #????????????#????????? | | ???# ##/// ## "" # #?????????????????????? | | ???+ ##// ## """ + #?????????????????????? | | ???# ## ## S" # #?????????????????????? | | #??# ## ## # #?????????????????????? | | ?## ## ########### r##????????????????????? | | # # #????????# ########?????????????? | | # ##+############ [ ??????????? | | + T % %= ??????????? | | ] # ############### %[ ??????????? | | # !#?????????????# ######## ???????????? | | ##### ########????????###+###????????????????????? | | ||! # # #???????????????????????????????????? | | |!! + + #???????????????????????????????????? | | |!! # # """ #???????????????????????????????????? | | # # """ #???????????????????????????????????? | | # # """ #???????????????????????????????????? | | = #%# #???????????????????????????????????? | | ##### ########???????????????????????????????????? | | ????# #?#########????????????????????????????????? | | ??### ### #????????????????????????????????? | | ??# # ] """ ######???????????????????????????? | +----------------------------------------------------+ Best States ------------- Heat Dissipation 31 Energy Generation 14 Energy Capacity 575 Matter Stores 300 Matter Capacity 300 Sight Range 16 Terrain Scan Density 10 Heat Shielding 75 Resistance: KI 20 Resistance: TH 20 Resistance: EX 20 Resistance: EM 20 Resistance: I 20 Resistance: S 20 Resistance: P 20 Evasion (%) 50 Recoil Reduction 2 Offensive Hacking 10 Item Schematics ----------------- None Robot Schematics ------------------ None Fabricated ------------ Nothing Alien Tech Used ----------------- None Achievements -------------- Use The Force Challenges ------------ None Game ------ Seed MassNodePenetrator Manual? 0 Play Time 00:16:52 Cumulative 3.8 hours Start 2021.05.18 @ 07:28:44 End 2021.05.18 @ 07:45:34 Sessions 1 Manual Loads 0 Difficulty Adventurer Special Mode None Game No. 8 Rogue 0 Adventurer 8 Explorer 0 Win Type - Total 0 Types 0/0/0/0/0/0/0/0/0 Lore% 1 Gallery% 12 Achievement% 10 Wizard Run 0 Options --------- ASCII 0 Keyboard 0 Movement Numpad Keybinds 0 Fullscreen 1 Font 18/SmallcapsGlow Map View 76x50 Tactical HUD 1 Map Filters NONE Filters NONE Steam 1 RUN: a8b8dfe7-4970-4626-80c5-9a800d0538c7